bitfinex-derivatives/quotes_BNBF0:USTF0_20250315
["timestamp","ask_amount","ask_price","bid_price","bid_amount"]
[1741997207423,0.31188755,589.78,588.66,7.86375469]
[1741997209427,0.31188755,589.77,588.66,7.86375469]
[1741997209631,0.31188755,589.78,588.66,7.86375469]
[1741997209830,0.31188755,589.77,588.66,7.86375469]
[1741997210025,0.31188755,589.78,588.66,7.86375469]
[1741997210227,0.31188755,589.77,588.66,7.86375469]
[1741997210533,0.29540342,589.79,588.66,7.86375469]
[1741997210832,0.31186321,589.78,588.66,7.86375469]
[1741997211026,0.29540342,589.79,588.66,7.86375469]
[1741997211225,0.31185765,589.78,588.66,7.86375469]
[1741997211827,0.29540342,589.79,588.66,7.86375469]
[1741997212230,0.31185721,589.78,588.66,7.86375469]
[1741997212436,0.31185721,589.79,588.66,7.86375469]
[1741997212628,0.33909799,589.8,588.66,7.86375469]
[1741997212832,0.31185408,589.79,588.66,7.86375469]
[1741997213035,0.31185408,589.79,588.67,0.30754383]
[1741997213232,0.31185408,589.79,588.68,0.33974315]
[1741997213435,0.31185408,589.79,588.69,0.30754383]
[1741997213636,0.31185408,589.79,588.7,0.33973161]
[1741997213837,0.31185408,589.79,588.71,0.30754383]
[1741997214036,0.31185408,589.79,588.72,0.33972007]
[1741997215738,0.31185408,589.79,588.73,0.853]
[1741997216236,0.31185408,589.79,588.74,1.12870853]
[1741997216438,0.31185408,589.79,588.75,0.33970276]
[1741997216638,0.31185408,589.79,588.75,1.47570276]
[1741997217039,0.31185408,589.79,588.76,0.684]
[1741997217239,0.31185408,589.79,588.76,1.36]
[1741997218341,0.3118769,589.78,588.76,1.36]
[1741997218634,0.63448511,589.8,588.76,1.36]
[1741997218635,0.3118769,589.77,588.76,1.36]
[1741997218843,0.3118769,589.76,588.76,1.36]
[1741997219141,0.3118769,589.75,588.76,1.36]
[1741997219336,0.3118769,589.79,588.76,1.36]
[1741997219640,0.3118769,589.78,588.76,1.36]
[1741997219840,0.3118769,589.79,588.77,0.99035068]
[1741997220040,0.3118769,589.78,588.77,0.99035068]
[1741997220240,0.3118769,589.79,588.77,0.99035068]
[1741997220440,0.3118769,589.78,588.77,0.99035068]
[1741997220835,0.3118769,589.77,588.77,0.99035068]
[1741997221038,0.3118769,589.76,588.77,0.99035068]
[1741997221240,0.3118769,589.75,588.77,0.99035068]
[1741997221441,0.33909799,589.8,588.77,0.99035068]
[1741997221637,0.31189543,589.79,588.77,0.99035068]
[1741997222439,0.29539088,589.78,588.77,0.99035068]
[1741997222636,0.31189543,589.77,588.77,0.99035068]
[1741997222940,0.29536707,589.88,588.78,0.33968545]
[1741997224346,0.33850684,590.83,588.78,0.33968545]
[1741997224546,0.29530315,589.87,588.78,0.33968545]
[1741997224739,0.33850684,590.83,588.78,0.33968545]
[1741997224944,0.31186737,590.82,588.78,0.33968545]
[1741997225144,0.33856988,590.72,588.78,0.33968545]
[1741997225345,0.31186737,590.71,588.78,0.33968545]
[1741997225546,0.33858707,590.69,588.78,0.33968545]
[1741997225847,0.31186737,590.68,588.78,0.33968545]
[1741997226040,0.33860427,590.66,588.78,0.33968545]
[1741997226240,0.31186737,590.65,588.78,0.33968545]
[1741997226445,0.33862147,590.63,588.78,0.33968545]
[1741997226750,0.31186737,590.62,588.78,0.33968545]
[1741997227042,0.33863867,590.6,588.78,0.33968545]
[1741997227245,0.31186737,590.59,588.78,0.33968545]
[1741997227445,0.33865587,590.57,588.78,0.33968545]
[1741997227642,0.31186737,590.56,588.78,1.05968545]
[1741997227846,0.33867307,590.54,588.78,1.05968545]
[1741997228046,0.31186737,590.53,588.78,1.05968545]
[1741997228346,0.33869028,590.51,588.78,1.05968545]
[1741997228546,0.31186737,590.5,588.78,1.05968545]
[1741997228748,0.33870749,590.48,588.78,1.05968545]
[1741997228946,0.31186737,590.47,588.78,1.05968545]
[1741997229247,0.3387247,590.45,588.78,1.05968545]
[1741997229441,0.31186737,590.44,588.78,1.05968545]
[1741997229645,0.33874191,590.42,588.78,1.05968545]
[1741997229847,0.31186737,590.41,588.78,1.05968545]
[1741997230047,0.33875912,590.39,588.78,1.05968545]
[1741997230244,0.31186737,590.38,588.78,1.05968545]
[1741997230449,0.33877633,590.36,588.78,1.05968545]
[1741997230649,0.31186737,590.35,588.78,1.05968545]
[1741997230846,0.33879355,590.33,588.78,1.05968545]
[1741997231052,0.31186737,590.32,588.78,1.05968545]
[1741997231251,0.33881077,590.3,588.78,1.05968545]
[1741997231448,0.31186737,590.29,588.78,1.05968545]
[1741997231649,0.33882799,590.27,588.78,1.05968545]
[1741997231850,0.31186737,590.26,588.78,1.05968545]
[1741997232052,0.33884521,590.24,588.78,1.05968545]
[1741997232250,0.31186737,590.23,588.78,1.05968545]
[1741997232452,0.33885669,590.22,588.78,1.05968545]
[1741997232652,0.31185319,590.21,588.78,1.05968545]
[1741997232951,0.33886818,590.2,588.78,1.05968545]
[1741997233153,0.31185319,590.19,588.78,1.05968545]
[1741997233353,0.33887966,590.18,588.78,1.05968545]
[1741997233554,0.31185319,590.17,588.78,1.05968545]
[1741997233853,0.33889114,590.16,588.78,1.05968545]
[1741997234156,0.31185319,590.15,588.78,1.05968545]
[1741997234350,0.33890263,590.14,588.78,1.05968545]
[1741997234752,0.31185319,590.13,588.78,1.05968545]
[1741997236353,0.29530441,590.12,588.78,1.05968545]
[1741997236752,0.31180763,590.11,588.78,1.05968545]
[1741997237348,0.31180763,590.11,588.78,2.06068545]
[1741997237547,0.31180763,590.11,588.78,2.53168545]
[1741997237753,0.31180763,590.11,588.78,3.16368545]
[1741997239255,0.31180763,590.11,588.78,3.81568545]
[1741997239450,0.31180763,590.13,588.78,3.81568545]
[1741997239655,0.29530691,590.1,588.78,3.81568545]
[1741997239853,0.31180763,590.09,588.78,3.81568545]
[1741997242255,0.31181395,590.08,588.78,3.81568545]
[1741997242461,0.29530942,590.08,588.78,3.81568545]
[1741997242653,0.31181395,590.07,588.78,3.81568545]
[1741997245355,0.31181395,590.13,588.78,3.81568545]
[1741997245562,0.29531192,590.06,588.78,3.81568545]
[1741997245760,0.33890263,590.14,588.78,3.81568545]
[1741997245960,0.31180591,590.13,588.78,3.81568545]
[1741997246658,0.31180591,590.13,588.78,5.11868545]
[1741997247361,0.29530691,590.12,588.78,5.11868545]
[1741997247561,0.31180591,590.11,588.78,5.11868545]
[1741997248358,0.29530942,590.1,588.78,5.11868545]
[1741997248564,0.29530942,590.1,588.78,5.85868545]
[1741997248763,0.31180591,590.09,588.78,5.85868545]
[1741997251463,0.31180591,590.13,588.78,5.85868545]
[1741997251664,0.29532195,590.08,588.78,5.85868545]
[1741997251860,0.31180591,590.07,588.78,5.85868545]
[1741997254566,0.29532445,590.06,588.78,5.85868545]
[1741997254964,0.31180591,590.05,588.78,5.85868545]
[1741997255666,0.31180591,590.05,588.78,6.93868545]
[1741997257360,0.31180591,590.13,588.78,6.93868545]
[1741997257562,0.29532696,590.04,588.78,6.93868545]
[1741997257767,0.31180591,590.03,588.78,6.93868545]
[1741997257969,0.31180591,590.11,588.78,6.93868545]
[1741997258169,0.65072577,590.11,588.78,6.93868545]
[1741997258369,0.31180591,590.1,588.78,6.93868545]
[1741997259471,0.29532069,590.09,588.78,6.93868545]
[1741997259770,0.31180591,590.08,588.78,6.93868545]
[1741997260364,0.31180591,590.1,588.78,6.93868545]
[1741997260564,0.33891986,590.11,588.78,6.93868545]
[1741997260565,0.60712911,590.07,588.78,6.93868545]
[1741997260769,0.31180591,590.06,588.78,6.93868545]
[1741997262373,0.2953232,590.07,588.78,6.93868545]
[1741997262771,0.31184477,590.06,588.78,6.93868545]
[1741997263473,0.60717048,590.05,588.78,6.93868545]
[1741997263670,0.31184477,590.04,588.78,6.93868545]
[1741997266174,0.33891986,590.11,588.78,6.93868545]
[1741997266375,0.31184549,590.1,588.78,6.93868545]
[1741997266574,0.29532821,590.03,588.78,6.93868545]
[1741997266876,0.31184549,590.02,588.78,6.93868545]
[1741997267074,0.31184549,590.1,588.78,6.93868545]
[1741997267269,0.31184549,590.09,588.78,6.93868545]
[1741997267472,0.31184549,590.1,588.78,6.93868545]
[1741997267771,0.31184549,590.09,588.78,6.93868545]
[1741997267972,0.65078258,590.08,588.78,6.93868545]
[1741997268171,0.65078832,590.07,588.78,6.93868545]
[1741997268373,0.65079407,590.06,588.78,6.93868545]
[1741997268672,0.65079981,590.05,588.78,6.93868545]
[1741997268876,0.31184549,590.04,588.78,6.93868545]
[1741997269478,0.63432159,590.03,588.78,6.93868545]
[1741997269675,0.65081705,590.02,588.78,6.93868545]
[1741997269871,0.65082279,590.01,588.78,6.93868545]
[1741997270072,0.65082854,590.0,588.78,6.93868545]
[1741997270275,0.31184549,589.99,588.78,7.73368545]
[1741997271978,0.33899454,589.98,588.78,7.73368545]
[1741997272179,0.31194247,589.97,588.78,7.73368545]
[1741997272373,0.60731079,589.97,588.78,7.73368545]
[1741997272577,0.31194247,589.96,588.78,7.73368545]
[1741997273577,0.29536832,589.97,588.78,7.73368545]
[1741997273773,0.31188925,589.96,588.78,7.73368545]
[1741997275278,0.31188925,589.97,588.78,7.73368545]
[1741997275474,0.29535328,589.95,588.78,7.73368545]
[1741997275680,0.31188925,589.94,588.78,7.73368545]
[1741997278380,0.31188925,589.93,588.78,7.73368545]
[1741997278680,0.31188925,589.92,588.78,7.73368545]
[1741997280980,0.31188925,589.91,588.78,7.73368545]
[1741997281281,0.31188925,589.9,588.78,7.73368545]
[1741997281480,0.60724754,589.9,588.78,7.73368545]
[1741997281681,0.31188925,589.89,588.78,7.73368545]
[1741997283283,0.31188925,589.88,588.78,7.73368545]
[1741997283484,0.31188925,589.89,588.78,7.73368545]
[1741997283684,0.31188925,589.88,588.78,7.73368545]
[1741997283878,0.31188925,589.89,588.78,7.73368545]
[1741997284180,0.31188925,589.88,588.78,7.73368545]
[1741997284382,0.31188925,589.97,588.78,7.73368545]
[1741997284578,0.29536205,589.88,588.78,7.73368545]
[1741997284982,0.31188925,589.87,588.78,7.73368545]
[1741997285179,0.31188925,589.86,588.78,7.73368545]
[1741997285382,0.31188925,589.97,588.78,7.73368545]
[1741997285578,0.33899454,589.98,588.78,7.73368545]
[1741997285579,0.29535202,589.86,588.78,7.73368545]
[1741997285780,0.31188925,589.85,588.78,7.73368545]
[1741997285982,0.29535453,589.85,588.78,7.73368545]
[1741997286175,0.31188925,589.84,588.78,7.73368545]
[1741997287389,0.31188925,589.83,588.78,7.73368545]
[1741997290194,0.31187096,589.82,588.78,7.73368545]
[1741997290490,0.31187096,589.81,588.78,7.73368545]
[1741997290690,0.31187096,589.83,588.78,7.73368545]
[1741997290893,0.31187096,589.82,588.78,7.73368545]
[1741997291085,0.31187096,589.83,588.78,7.73368545]
[1741997291289,0.31187096,589.82,588.78,7.73368545]
[1741997291486,0.31187096,589.81,588.78,7.73368545]
[1741997291690,0.31187096,589.83,588.78,7.73368545]
[1741997291890,0.31187096,589.82,588.78,7.73368545]
[1741997292090,0.31187096,589.83,588.78,7.73368545]
[1741997292386,0.31187096,589.82,588.78,7.73368545]
[1741997292793,0.31187096,589.81,588.78,7.73368545]
[1741997293088,0.31187096,589.8,588.78,7.73368545]
[1741997293293,0.31187096,589.83,588.78,7.73368545]
[1741997293493,0.29535453,589.9,588.78,7.73368545]
[1741997293695,0.31183288,589.89,588.78,7.73368545]
[1741997293887,0.29535453,589.9,588.78,7.73368545]
[1741997294088,0.31183202,589.89,588.78,7.73368545]
[1741997296388,0.29533949,589.93,588.78,7.73368545]
[1741997296594,0.31183202,589.92,588.78,7.73368545]
[1741997297795,0.31183654,589.91,588.78,7.73368545]
[1741997297992,0.31183654,589.92,588.78,7.73368545]
[1741997298197,0.31183654,589.91,588.78,7.73368545]
[1741997298398,0.31183654,589.92,588.78,7.73368545]
[1741997299500,0.31183654,589.91,588.78,7.73368545]
[1741997299698,0.31183654,589.92,588.78,7.73368545]
[1741997299898,0.31183654,589.91,588.78,7.73368545]
[1741997300100,0.31183654,589.92,588.78,7.73368545]
[1741997300395,0.31183654,589.91,588.78,7.73368545]
[1741997300596,0.31183654,589.9,588.78,7.73368545]
[1741997300901,0.31183654,589.89,588.78,7.73368545]
[1741997301200,0.31183654,589.88,588.78,7.73368545]
[1741997301401,0.31183654,589.92,588.78,7.73368545]
[1741997301597,0.31183654,589.91,588.78,7.73368545]
[1741997301901,0.31183654,589.9,588.78,7.73368545]
[1741997302096,0.29533573,589.93,588.78,7.73368545]
[1741997302297,0.33899454,589.98,588.78,7.73368545]
[1741997302603,0.29532947,589.93,588.78,7.73368545]
[1741997305105,0.33899454,589.98,588.78,7.73368545]
[1741997305400,0.63431148,589.98,588.78,7.73368545]
[1741997308209,0.33899454,589.98,588.78,7.73368545]
[1741997309010,0.63423756,589.98,588.78,7.73368545]
[1741997311306,0.33899454,589.98,588.78,7.73368545]
[1741997311505,0.63431148,589.98,588.78,7.73368545]
[1741997314317,0.33899454,589.98,588.78,7.73368545]
[1741997314517,0.63431148,589.98,588.78,7.73368545]
[1741997317211,0.33899454,589.98,588.78,7.73368545]
[1741997317415,0.63431148,589.98,588.78,7.73368545]
[1741997323318,0.33899454,589.98,588.78,7.73368545]
[1741997363960,0.31179709,589.97,588.78,7.73368545]
[1741997364562,0.33899454,589.98,588.78,7.73368545]
[1741997365460,0.31179739,589.97,588.78,7.73368545]
[1741997365956,0.33899454,589.98,588.78,7.73368545]
[1741997366154,0.31179769,589.97,588.78,7.73368545]
[1741997367861,0.33899454,589.98,588.78,7.73368545]
[1741997367862,0.31179205,589.96,588.78,7.73368545]
[1741997368159,0.31179205,589.95,588.78,7.73368545]
[1741997368362,0.31179205,589.94,588.78,7.73368545]
[1741997368659,0.31179205,589.93,588.78,7.73368545]
[1741997368860,0.31179205,589.92,588.78,7.73368545]
[1741997369054,0.31179205,589.91,588.78,7.73368545]
[1741997369257,0.31179205,589.97,588.78,7.73368545]
[1741997369459,0.31179205,589.96,588.78,7.73368545]
[1741997369660,0.31179205,589.95,588.78,7.73368545]
[1741997369856,0.31179205,589.97,588.78,7.73368545]
[1741997370056,0.33899454,589.98,588.78,7.73368545]
[1741997370666,0.31179145,589.97,588.78,7.73368545]
[1741997372068,0.33899454,589.98,588.78,7.73368545]
[1741997373068,0.31178173,589.97,588.78,7.73368545]
[1741997373468,0.31178173,589.97,588.79,0.30814847]
[1741997373664,0.33899454,589.98,588.8,0.33967391]
[1741997373868,0.31177795,589.97,588.8,0.33967391]
[1741997375071,0.31177795,589.97,588.81,0.30812201]
[1741997375467,0.31177795,589.97,588.8,0.33967391]
[1741997375468,0.31177711,589.96,588.8,0.33967391]
[1741997375673,0.31177711,589.97,588.81,0.30813903]
[1741997375866,0.33899454,589.98,588.8,0.33967391]
[1741997376269,3.31847699,590.44,588.8,1.34767391]
[1741997376469,0.6504638,590.43,588.8,2.43767391]
[1741997376670,2.59272748,590.48,588.8,2.43767391]
[1741997376671,0.65046954,590.42,588.8,2.43767391]
[1741997376973,0.65047527,590.41,588.8,4.16867391]
[1741997377175,0.65048101,590.4,588.8,4.98067391]
[1741997377372,0.33875338,590.4,588.8,8.77367391]
[1741997378071,0.31169014,590.39,588.8,8.77367391]
[1741997379068,0.31169014,590.39,588.81,0.30786966]
[1741997379271,0.31169014,590.39,588.83,0.3396566]
[1741997379467,0.31169014,590.39,588.84,0.30786966]
[1741997379671,0.31169014,590.39,588.86,0.3396393]
[1741997379866,0.31169014,590.39,588.87,0.30786966]
[1741997380274,0.31169014,590.39,588.89,0.339622]
[1741997380567,0.29517916,590.38,588.9,0.30786966]
[1741997380773,0.31169014,590.37,588.92,0.3396047]
[1741997380978,0.31169014,590.37,588.93,0.30786966]
[1741997381175,0.31164643,590.36,588.95,0.3395874]
[1741997381367,0.31164643,590.35,588.96,0.30775763]
[1741997381569,0.31164643,590.34,588.98,0.3395701]
[1741997381770,0.31164643,590.33,588.98,0.3395701]
[1741997381976,0.31164643,590.37,588.98,0.3395701]
[1741997382175,0.31164643,590.36,588.99,0.30772772]
[1741997382372,0.31164643,590.37,589.01,0.3395528]
[1741997382571,0.31164643,590.36,589.01,0.3395528]
[1741997383079,0.29517916,590.38,589.01,0.3395528]
[1741997383080,0.31163496,590.35,589.01,0.3395528]
[1741997383277,0.31163496,590.37,589.01,0.3395528]
[1741997383478,0.29517165,590.35,589.01,0.3395528]
[1741997383676,0.31163496,590.34,589.01,0.3395528]
[1741997384678,0.3116351,590.33,589.01,0.3395528]
[1741997384878,0.3116351,590.34,589.01,0.3395528]
[1741997385177,0.29517165,590.35,589.01,0.3395528]
[1741997385378,0.31163525,590.34,589.01,0.3395528]
[1741997386077,0.29517165,590.35,589.01,0.3395528]
[1741997386278,0.33875338,590.4,589.01,0.3395528]
[1741997386479,0.29516539,590.35,589.01,0.3395528]
[1741997386779,0.31163555,590.34,589.01,0.3395528]
[1741997389481,0.31163555,590.33,589.01,0.3395528]
[1741997389674,0.31163555,590.32,589.01,0.3395528]
[1741997389874,0.31163555,590.31,589.01,0.3395528]
[1741997390079,0.31163555,590.3,589.01,0.3395528]
[1741997390281,0.31163555,590.34,589.02,1.291]
[1741997390482,0.31163525,590.33,589.02,1.291]
[1741997390678,0.31163525,590.34,589.02,1.291]
[1741997390980,0.31163525,590.33,589.02,1.291]
[1741997391184,0.31163525,590.34,589.02,1.291]
[1741997391376,0.31163525,590.33,589.02,1.291]
[1741997391578,0.31163525,590.34,589.02,1.291]
[1741997391777,0.31163525,590.33,589.02,1.291]
[1741997391980,0.31163525,590.32,589.02,1.291]
[1741997392178,0.31163525,590.34,589.02,1.291]
[1741997392383,0.31163525,590.33,589.02,1.291]
[1741997392579,0.29514787,590.35,589.02,1.291]
[1741997392885,0.31163525,590.34,589.04,0.33953551]
[1741997393085,0.31163525,590.34,589.05,0.30768623]
[1741997393680,0.31163525,590.34,589.07,0.33951822]
[1741997393880,0.31163525,590.39,589.07,0.33951822]
[1741997394082,0.33875338,590.4,589.08,0.917]
[1741997394283,0.3115995,590.39,589.09,0.30767465]
[1741997394481,0.3115995,590.39,589.11,0.33949517]
[1741997394783,0.3115995,590.39,589.12,0.791]
[1741997394985,0.3115995,590.39,589.13,0.33948364]
[1741997395382,0.33875338,590.4,589.13,0.33948364]
[1741997395583,0.29512409,590.38,589.13,0.33948364]
[1741997395985,0.31160659,590.37,589.14,0.30768892]
[1741997396186,0.31160659,590.37,589.15,0.33947212]
[1741997396587,0.31160659,590.37,589.16,0.30768892]
[1741997396787,0.31160659,590.37,589.17,0.33946059]
[1741997397986,0.31160659,590.37,589.18,0.30767918]
[1741997398386,0.31160659,590.39,589.19,0.33944907]
[1741997398587,0.31160659,590.38,589.2,0.30767918]
[1741997398783,0.31160659,590.37,589.2,0.30767918]
[1741997399089,0.31160659,590.36,589.2,0.30767918]
[1741997399289,0.31160659,590.35,589.2,0.30767918]
[1741997399585,0.31159619,590.34,589.19,0.33944907]
[1741997399786,0.31159619,590.39,589.19,0.33944907]
[1741997400089,0.31159619,590.38,589.19,0.33944907]
[1741997400285,0.31159619,590.39,589.19,0.33944907]
[1741997400487,0.31159619,590.38,589.19,0.33944907]
[1741997400688,0.31159619,590.39,589.19,0.33944907]
[1741997400890,0.31159619,590.38,589.19,0.33944907]
[1741997401089,0.63387747,590.4,589.19,0.33944907]
[1741997401289,0.31159546,590.39,589.19,0.33944907]
[1741997401490,0.63387747,590.4,589.19,0.33944907]
[1741997402491,0.31159521,590.39,589.19,0.33944907]
[1741997403288,0.31161296,590.38,589.2,0.804]
[1741997403493,0.31161296,590.37,589.2,1.669]
[1741997403691,0.31161296,590.39,589.2,1.669]
[1741997403894,0.31161296,590.38,589.21,0.33943755]
[1741997404094,0.31161296,590.39,589.21,0.33943755]
[1741997404289,0.63387747,590.4,589.21,0.33943755]
[1741997404290,0.31161296,590.38,589.21,0.33943755]
[1741997404490,0.31161296,590.37,589.21,0.33943755]
[1741997404799,0.31161296,590.36,589.21,0.33943755]
[1741997404996,0.31161799,590.35,589.21,0.33943755]
[1741997405191,0.31161799,590.39,589.21,0.33943755]
[1741997405391,0.31161799,590.38,589.21,0.33943755]
[1741997405596,0.31161799,590.37,589.21,0.33943755]
[1741997405798,0.31161799,590.39,589.21,0.33943755]
[1741997406194,0.31161799,590.39,589.22,1.393]
[1741997406596,0.63386746,590.4,589.22,1.393]
[1741997406897,0.31161752,590.39,589.22,1.393]
[1741997408601,0.31161752,590.39,589.23,0.956]
[1741997408796,0.33876486,590.38,589.23,0.956]
[1741997408996,0.31161752,590.37,589.23,0.956]
[1741997409196,0.65039385,590.36,589.23,0.956]
[1741997409401,0.65039959,590.35,589.23,0.956]
[1741997409602,0.31161752,590.34,589.23,0.956]
[1741997409803,0.31161752,590.33,589.24,1.177]
[1741997410001,0.31161752,590.32,589.24,1.177]
[1741997410203,0.31161752,590.31,589.24,1.177]
[1741997410396,0.31161752,590.3,589.25,0.47]
[1741997410602,0.31161752,590.29,589.25,0.47]
[1741997410802,0.31161752,590.28,589.25,0.47]
[1741997411001,0.31161752,590.27,589.25,0.47]
[1741997411201,0.31161752,590.26,589.25,0.47]
[1741997411398,0.31161752,590.25,589.25,0.47]
[1741997411704,0.31161752,590.24,589.25,0.47]
[1741997411903,0.31161752,590.3,589.25,0.47]
[1741997412101,0.31161752,590.29,589.25,0.47]
[1741997412299,0.31175988,590.28,589.25,0.47]
[1741997412599,0.31175988,590.27,589.25,0.47]
[1741997412806,0.31175988,590.3,589.25,0.47]
[1741997413001,0.31175988,590.29,589.25,0.47]
[1741997413305,0.31175988,590.28,589.25,0.47]
[1741997413504,0.31175988,590.3,589.25,0.47]
[1741997413704,0.31175988,590.29,589.25,0.47]
[1741997413905,0.29519294,590.31,589.25,0.47]
[1741997414206,0.31175831,590.3,589.25,0.47]
[1741997414504,0.33881651,590.29,589.25,0.47]
[1741997414710,0.31175831,590.28,589.25,0.47]
[1741997414909,0.33882799,590.27,589.25,0.47]
[1741997415108,0.31175831,590.26,589.25,0.47]
[1741997415411,0.33883947,590.25,589.25,0.47]
[1741997415709,0.31175831,590.24,589.25,0.47]
[1741997415910,0.65060352,590.24,589.25,0.47]
[1741997416105,0.31175831,590.23,589.25,0.47]
[1741997416511,0.29521422,590.22,589.25,0.47]
[1741997416707,0.31175831,590.21,589.25,0.47]
[1741997419513,0.60693812,590.2,589.25,0.47]
[1741997419712,0.31172891,590.19,589.26,0.783]
[1741997420012,0.31172891,590.19,589.27,0.867]
[1741997421306,0.31173195,590.18,589.27,0.867]
[1741997421506,0.31173195,590.17,589.27,0.867]
[1741997421714,0.31173195,590.19,589.27,0.867]
[1741997421907,0.31173195,590.18,589.27,0.867]
[1741997422211,0.31173195,590.17,589.27,0.867]
[1741997422409,0.31173195,590.23,589.27,0.867]
[1741997422713,0.29520796,590.17,589.27,0.867]
[1741997422913,0.31173195,590.16,589.27,1.825]
[1741997424212,0.31173195,590.16,589.27,2.65]
[1741997425211,0.31173195,590.16,589.27,3.592]
[1741997425414,0.31173195,590.15,589.27,3.592]
[1741997425616,0.31173195,590.14,589.27,3.592]
[1741997426413,0.31173195,590.14,589.27,4.354]
[1741997426711,0.31178155,590.13,589.27,4.354]
[1741997426910,0.31178155,590.12,589.27,4.354]
[1741997427112,0.31178155,590.11,589.27,4.354]
[1741997427312,0.31178155,590.14,589.27,4.354]
[1741997427514,0.31178155,590.13,589.27,4.354]
[1741997427712,0.31178155,590.12,589.27,4.354]
[1741997427916,0.31178155,590.11,589.27,4.354]
[1741997428117,0.31178155,590.14,589.27,4.354]
[1741997428417,0.31178155,590.13,589.27,4.354]
[1741997428615,0.31178155,590.12,589.27,4.354]
[1741997428915,0.31177678,590.11,589.27,4.354]
[1741997429114,0.31177678,590.1,589.27,4.354]
[1741997429318,0.31177678,590.09,589.27,4.354]
[1741997429519,0.31177678,590.08,589.27,4.354]
[1741997429717,0.31177678,590.12,589.27,4.354]
[1741997430014,0.31177678,590.11,589.27,4.354]
[1741997430214,0.31177678,590.1,589.27,4.354]
[1741997430414,0.31177678,590.09,589.27,4.354]
[1741997430614,0.31177678,590.08,589.27,4.354]
[1741997430817,0.31177678,590.12,589.27,4.354]
[1741997431015,0.31177678,590.11,589.27,4.354]
[1741997431213,0.31177678,590.12,589.27,4.354]
[1741997431419,0.31177678,590.11,589.27,4.354]
[1741997431619,0.29520295,590.11,589.27,4.354]
[1741997431820,0.31177678,590.1,589.27,4.354]
[1741997434517,0.31177678,590.09,589.27,4.354]
[1741997434822,0.31177678,590.08,589.27,4.354]
[1741997435220,0.31172529,590.07,589.27,4.354]
[1741997435417,0.31172529,590.06,589.27,5.33]
[1741997435621,0.31172529,590.05,589.27,5.33]
[1741997435819,0.31172529,590.04,589.27,5.33]
[1741997436018,0.31172529,590.03,589.27,5.33]
[1741997436223,0.31172529,590.02,589.27,5.33]
[1741997436421,0.31172529,590.08,589.27,5.33]
[1741997437722,0.31172529,590.07,589.27,5.33]
[1741997437921,0.31172529,590.06,589.27,5.33]
[1741997438123,0.31172529,590.2,589.27,5.33]
[1741997438324,0.31172529,590.19,589.27,5.33]
[1741997438522,0.29519544,590.21,589.27,5.33]
[1741997438523,0.31172529,590.2,589.27,5.33]
[1741997438725,0.29519544,590.21,589.27,5.33]
[1741997438726,0.31172529,590.19,589.27,5.33]
[1741997438925,0.31172529,590.2,589.27,5.33]
[1741997439221,0.31172529,590.19,589.27,5.33]
[1741997439427,0.31172529,590.2,589.27,5.33]
[1741997439627,0.31172529,590.19,589.27,6.816]
[1741997439828,0.31172529,590.18,589.27,6.816]
[1741997440028,0.31172529,590.17,589.27,6.816]
[1741997440325,0.31172529,590.16,589.27,6.816]
[1741997440530,0.31172529,590.15,589.27,6.816]
[1741997440929,0.31172529,590.22,589.27,7.286]
[1741997441125,0.31172529,590.21,589.27,7.286]
[1741997441331,0.31172529,590.2,589.27,7.286]
[1741997441526,0.31172529,590.19,589.27,7.286]
[1741997441830,0.31172529,590.18,589.27,7.286]
[1741997442424,0.3116831,590.17,589.27,7.286]
[1741997442724,0.3116831,590.16,589.27,7.286]
[1741997442929,0.3116831,590.22,589.27,7.286]
[1741997444428,0.29517165,590.23,589.27,7.286]
[1741997446633,0.29517165,590.23,589.27,7.908]
[1741997452334,0.33884521,590.24,589.27,7.908]
[1741997454340,0.31164078,590.23,589.27,7.908]
[1741997455742,0.29517291,590.22,589.27,7.908]
[1741997455940,0.31164078,590.21,589.27,7.908]
[1741997457943,0.31167012,590.2,589.27,7.908]
[1741997458244,0.31167012,590.19,589.27,7.908]
[1741997458440,0.31167012,590.23,589.27,7.908]
[1741997458637,0.29517291,590.21,589.27,7.908]
[1741997458840,0.31167012,590.2,589.27,7.908]
[1741997461246,0.31167898,590.19,589.27,7.908]
[1741997461442,0.31167898,590.18,589.27,7.908]
[1741997461649,0.29517666,590.21,589.27,7.908]
[1741997461841,0.31167898,590.2,589.27,7.908]
[1741997464547,0.29517666,590.21,589.27,7.908]
[1741997464843,0.31167979,590.2,589.27,7.908]
[1741997465347,0.31167991,590.19,589.27,7.908]
[1741997465542,0.31167991,590.2,589.27,7.908]
[1741997465748,0.31167991,590.19,589.27,7.908]
[1741997465948,0.31167991,590.18,589.27,7.908]
[1741997466150,0.31167991,590.17,589.27,7.908]